bitfinex-derivatives/quotes_BTCF0:USTF0_20241021
["timestamp","ask_amount","ask_price","bid_price","bid_amount"]
[1729522499125,0.01786404,67212.0,67211.0,0.002]
[1729522499431,0.074412,67217.0,67211.0,0.002]
[1729522499627,0.074414,67215.0,67211.0,0.002]
[1729522499827,0.3608,67219.0,67211.0,0.002]
[1729522500026,0.074417,67212.0,67211.0,0.001]
[1729522501331,0.61068,67212.0,67182.0,0.40513527]
[1729522501533,0.074437,67194.0,67187.0,0.1075]
[1729522502032,0.3608,67199.0,67187.0,0.1075]
[1729522502233,0.074434,67197.0,67187.0,0.1075]
[1729522502441,0.3608,67199.0,67189.0,0.074441]
[1729522502631,0.4731,67206.0,67187.0,0.1075]
[1729522502937,0.3608,67206.0,67200.0,0.07443]
[1729522503125,0.3608,67206.0,67201.0,0.291329]
[1729522503332,0.3608,67206.0,67202.0,0.1075]
[1729522503533,0.3608,67206.0,67202.0,0.181927]
[1729522503842,0.435205,67223.0,67211.0,0.074418]
[1729522504137,0.435205,67223.0,67208.0,0.3608]
[1729522504138,0.074406,67222.0,67208.0,0.3608]
[1729522504329,0.3608,67223.0,67208.0,0.3608]
[1729522504330,0.074408,67221.0,67208.0,0.435221]
[1729522504662,0.074407,67221.0,67209.0,0.07442]
[1729522504832,0.37826593,67223.0,67206.0,0.074423]
[1729522505137,0.074409,67219.0,67208.0,0.435221]
[1729522505338,0.37826593,67223.0,67208.0,0.3608]
[1729522505636,0.07441,67219.0,67208.0,0.3608]
[1729522505840,0.07441,67219.0,67202.0,0.12637244]
[1729522506229,0.03645659,67218.0,67207.0,0.074422]
[1729522506431,0.03645659,67217.0,67208.0,0.074421]
[1729522506629,0.03645659,67216.0,67210.0,0.074418]
[1729522506828,0.3608,67216.0,67210.0,0.074419]
[1729522507039,0.3608,67216.0,67208.0,0.002]
[1729522507236,0.3608,67216.0,67208.0,0.3618]
[1729522507538,0.3608,67216.0,67210.0,0.074419]
[1729522507837,0.3608,67216.0,67210.0,0.066419]
[1729522509441,0.3608,67216.0,67208.0,0.3608]
[1729522509442,0.3608,67216.0,67208.0,0.435221]
[1729522510136,0.3608,67216.0,67209.0,0.07442]
[1729522510841,0.3608,67216.0,67210.0,0.074419]
[1729522511543,0.3608,67216.0,67208.0,0.3608]
[1729522511931,0.37838821,67216.0,67208.0,0.3608]
[1729522512129,0.37838821,67216.0,67207.0,0.074422]
[1729522512332,0.3608,67209.0,67193.0,0.3608]
[1729522512643,0.3608,67209.0,67194.0,0.1054]
[1729522512948,0.3608,67209.0,67197.0,0.074433]
[1729522512949,0.074425,67205.0,67197.0,0.074433]
[1729522513137,0.074425,67205.0,67194.0,0.1054]
[1729522513138,0.074426,67204.0,67194.0,0.179837]
[1729522513440,0.3608,67209.0,67194.0,0.1054]
[1729522513648,0.074429,67202.0,67194.0,0.179837]
[1729522514142,0.3608,67209.0,67194.0,0.179837]
[1729522514345,0.07443,67200.0,67194.0,0.191837]
[1729522514729,0.07443,67200.0,67194.0,0.201837]
[1729522514937,0.07443,67200.0,67196.0,0.074434]
[1729522515632,0.3608,67237.0,67203.0,0.074426]
[1729522515832,0.3256,67242.0,67225.0,0.435203]
[1729522516038,0.3608,67243.0,67225.0,0.435203]
[1729522516039,0.01765919,67235.0,67225.0,0.435203]
[1729522516245,0.01765919,67235.0,67225.0,0.44576689]
[1729522516834,0.3608,67243.0,67225.0,0.37136389]
[1729522517051,0.00223101,67254.0,67245.0,0.07438]
[1729522517243,0.00223101,67254.0,67246.0,0.3608]
[1729522517435,0.00223101,67254.0,67253.0,0.3608]
[1729522517642,0.00223101,67254.0,67248.0,0.3608]
[1729522517841,0.00223101,67254.0,67247.0,0.00514463]
[1729522517842,0.435176,67249.0,67247.0,0.00514463]
[1729522518047,0.435176,67249.0,67241.0,0.1069]
[1729522518048,0.074376,67249.0,67241.0,0.1069]
[1729522518349,0.07660201,67254.0,67245.0,0.001]
[1729522518647,0.074374,67252.0,67245.0,0.001]
[1729522518850,0.074374,67252.0,67248.0,0.001]
[1729522519742,0.074374,67251.0,67245.0,0.002]
[1729522520044,0.00223101,67254.0,67245.0,0.002]
[1729522520246,0.00223101,67254.0,67253.0,0.3608]
[1729522522246,0.00223101,67254.0,67253.0,0.3618]
[1729522522744,0.00223101,67254.0,67253.0,0.3628]
[1729522523147,0.00223101,67254.0,67253.0,0.3548]
[1729522524547,0.00223101,67254.0,67253.0,0.429172]
[1729522525348,0.00223101,67254.0,67253.0,0.3548]
[1729522525753,0.00223101,67254.0,67253.0,0.002]
[1729522525944,0.00223101,67254.0,67253.0,0.076372]
[1729522526541,0.00223101,67254.0,67253.0,0.002]
[1729522527156,0.00223101,67254.0,67253.0,0.001]
[1729522527452,0.00223101,67254.0,67250.0,0.435175]
[1729522528154,0.00223101,67254.0,67253.0,0.001]
[1729522528757,0.3608,67274.0,67253.0,0.001]
[1729522528758,0.074356,67268.0,67259.0,0.074364]
[1729522528945,0.00196,67270.0,67253.0,0.00437077]
[1729522529146,0.00196,67270.0,67252.0,0.3608]
[1729522529147,0.07435,67273.0,67257.0,0.074367]
[1729522529447,0.074354,67270.0,67261.0,0.3608]
[1729522529854,0.074354,67269.0,67261.0,0.3608]
[1729522530056,0.37794522,67274.0,67261.0,0.3608]
[1729522530257,0.074355,67268.0,67261.0,0.3608]
[1729522530553,0.074357,67267.0,67261.0,0.3608]
[1729522530853,0.074357,67267.0,67262.0,0.3608]
[1729522531154,0.37794522,67274.0,67254.0,0.07437]
[1729522531155,0.3608,67263.0,67254.0,0.07437]
[1729522531354,0.37794522,67274.0,67261.0,0.001]
[1729522531355,0.3608,67264.0,67261.0,0.001]
[1729522531858,0.074358,67266.0,67261.0,0.3608]
[1729522532050,0.074359,67265.0,67256.0,0.074368]
[1729522532456,0.3608,67268.0,67257.0,0.00271278]
[1729522532651,0.074363,67261.0,67254.0,0.1054]
[1729522533456,0.3318,67267.0,67254.0,0.1054]
[1729522533752,0.074364,67261.0,67254.0,0.1054]
[1729522534352,0.3318,67267.0,67254.0,0.1054]
[1729522534557,0.074363,67261.0,67254.0,0.1054]
[1729522535254,0.3608,67258.0,67254.0,0.1054]
[1729522535760,0.074368,67257.0,67254.0,0.1054]
[1729522536057,0.3608,67256.0,67246.0,0.108]
[1729522536262,0.3608,67250.0,67246.0,0.108]
[1729522536555,0.074369,67256.0,67254.0,0.001]
[1729522536759,0.3608,67255.0,67254.0,0.001]
[1729522537261,0.3608,67255.0,67246.0,0.108]
[1729522537459,0.074372,67253.0,67246.0,0.108]
[1729522538360,0.074373,67252.0,67246.0,0.108]
[1729522539062,0.074375,67251.0,67246.0,0.108]
[1729522539962,0.3608,67255.0,67246.0,0.108]
[1729522540361,0.074377,67249.0,67246.0,0.108]
[1729522542663,0.3608,67255.0,67246.0,0.108]
[1729522542854,0.074377,67249.0,67246.0,0.108]
[1729522543960,0.43517,67255.0,67246.0,0.108]
[1729522544154,0.074378,67247.0,67246.0,0.108]
[1729522544555,0.074378,67247.0,67235.0,0.1076]
[1729522544556,0.074377,67248.0,67235.0,0.1076]
[1729522544753,0.074377,67248.0,67224.0,0.3608]
[1729522544754,0.074395,67232.0,67231.0,0.1132]
[1729522546059,0.074392,67235.0,67232.0,0.074394]
[1729522546255,0.074394,67234.0,67232.0,0.074394]
[1729522546460,0.3608,67238.0,67231.0,0.1132]
[1729522546657,0.074395,67232.0,67231.0,0.1132]
[1729522547067,0.074395,67232.0,67231.0,0.1212]
[1729522547971,0.074395,67232.0,67231.0,0.1312]
[1729522548660,0.3608,67237.0,67231.0,0.1312]
[1729522548961,0.074387,67240.0,67237.0,0.074389]
[1729522549165,0.01923667,67247.0,67237.0,0.074389]
[1729522549365,0.074387,67239.0,67238.0,0.1041]
[1729522550874,0.074387,67239.0,67238.0,0.1051]
[1729522551080,0.435183,67243.0,67238.0,0.1051]
[1729522551270,0.074384,67242.0,67238.0,0.1051]
[1729522551465,0.074386,67241.0,67238.0,0.1081]
[1729522551865,0.3608,67243.0,67238.0,0.004]
[1729522551866,0.074387,67239.0,67238.0,0.004]
[1729522554180,0.074387,67239.0,67238.0,0.001]
[1729522554371,0.074387,67239.0,67238.0,0.002]
[1729522555276,0.435187,67239.0,67238.0,0.002]
[1729522555670,0.074387,67239.0,67238.0,0.002]
[1729522555873,0.435187,67239.0,67238.0,0.002]
[1729522556977,0.45247629,67239.0,67238.0,0.002]
[1729522557187,0.09167629,67239.0,67238.0,0.002]
[1729522559386,0.01728929,67239.0,67238.0,0.002]
[1729522559685,0.074382,67244.0,67238.0,0.002]
[1729522559872,0.074382,67244.0,67238.0,0.076388]
[1729522560283,0.01743081,67244.0,67238.0,0.002]
[1729522560477,0.074382,67244.0,67238.0,0.002]
[1729522560677,0.074384,67242.0,67238.0,0.002]
[1729522560875,0.3608,67240.0,67238.0,0.001]
[1729522561071,0.074387,67239.0,67238.0,0.004]
[1729522561776,0.44616,67239.0,67217.0,0.00223118]
[1729522562069,0.3608,67230.0,67218.0,0.113]
[1729522562278,0.074401,67227.0,67220.0,0.074408]
[1729522562473,0.435197,67230.0,67222.0,0.074406]
[1729522562681,0.16328,67235.0,67218.0,0.113]
[1729522562990,0.16328,67235.0,67226.0,0.0744]
[1729522563279,0.09112153,67237.0,67218.0,0.113]
[1729522563484,0.09112153,67237.0,67219.0,0.074409]
[1729522563485,0.0744,67228.0,67219.0,0.074409]
[1729522563674,0.0744,67228.0,67218.0,0.113]
[1729522563880,0.0744,67228.0,67221.0,0.074406]
[1729522564082,0.0744,67228.0,67223.0,0.3748]
[1729522564380,0.074401,67227.0,67223.0,0.3888]
[1729522565389,0.074398,67229.0,67223.0,0.3888]
[1729522565687,0.3608,67234.0,67223.0,0.3888]
[1729522565877,0.3608,67234.0,67223.0,0.3748]
[1729522566082,0.3608,67224.0,67223.0,0.028]
[1729522566388,0.3608,67228.0,67223.0,0.028]
[1729522566590,0.4064857,67233.0,67223.0,0.028]
[1729522566879,0.180895,67232.0,67223.0,0.028]
[1729522567184,0.074404,67224.0,67223.0,0.014]
[1729522568084,0.074404,67224.0,67223.0,0.028]
[1729522568276,0.520684,67224.0,67208.0,0.435221]
[1729522568583,0.3608,67225.0,67189.0,0.396142]
[1729522568584,0.074424,67206.0,67199.0,0.07443]
[1729522568781,0.074424,67206.0,67198.0,0.074432]
[1729522568981,0.3608,67210.0,67198.0,0.074432]
[1729522569282,0.074425,67205.0,67198.0,0.074432]
[1729522569484,0.3608,67210.0,67195.0,0.3608]
[1729522569485,0.3608,67204.0,67195.0,0.3608]
[1729522569681,0.074429,67202.0,67195.0,0.3608]
[1729522569984,0.074427,67203.0,67196.0,0.074435]
[1729522570578,0.074427,67203.0,67198.0,0.003]
[1729522570886,0.075429,67202.0,67198.0,0.003]
[1729522571390,0.074429,67202.0,67198.0,0.003]
[1729522571587,0.001,67203.0,67198.0,0.003]
[1729522571788,0.001,67203.0,67200.0,0.07443]
[1729522572086,0.001,67203.0,67198.0,0.003]
[1729522572292,0.3608,67199.0,67198.0,0.005]
[1729522573090,0.37785137,67210.0,67198.0,0.09597371]
[1729522573289,0.3608,67210.0,67209.0,0.07442]
[1729522573494,0.3608,67210.0,67195.0,0.22039723]
[1729522573495,0.55740796,67210.0,67195.0,0.22039723]
[1729522573794,0.55740796,67210.0,67201.0,0.074429]
[1729522573795,0.3608,67202.0,67201.0,0.074429]
[1729522575296,0.3608,67202.0,67201.0,0.09222712]
[1729522576185,0.3628,67202.0,67201.0,0.09222712]
[1729522580391,0.07443,67200.0,67199.0,0.074431]
[1729522581296,0.3628,67202.0,67196.0,0.09153268]
[1729522581297,0.074434,67197.0,67196.0,0.09153268]
[1729522582385,0.081434,67197.0,67196.0,0.09153268]
[1729522582887,0.007,67197.0,67196.0,0.09153268]
[1729522583088,0.007,67197.0,67196.0,0.0919756]
[1729522583288,0.006,67197.0,67196.0,0.0919756]
[1729522583895,0.006,67197.0,67196.0,0.0994392]
[1729522584091,0.01,67197.0,67196.0,0.0994392]
[1729522584592,0.01,67197.0,67196.0,0.5458792]
[1729522584794,0.004,67197.0,67196.0,0.5458792]
[1729522584994,0.011,67197.0,67196.0,0.5458792]
[1729522585193,0.011,67197.0,67196.0,0.0919756]
[1729522585498,0.011,67197.0,67196.0,0.09946396]
[1729522585697,0.007,67197.0,67196.0,0.09946396]
[1729522585886,0.01,67197.0,67196.0,0.09946396]
[1729522586087,0.003,67197.0,67196.0,0.09946396]
[1729522586290,0.009,67197.0,67196.0,0.54590396]
[1729522587390,0.007,67197.0,67196.0,0.55290396]
[1729522587793,0.001,67197.0,67196.0,0.55290396]
[1729522587999,0.538305,67223.0,67207.0,0.07442]
[1729522588198,0.3608,67223.0,67212.0,0.3608]
[1729522588406,0.435205,67223.0,67222.0,0.074406]
[1729522588700,0.435205,67223.0,67216.0,0.074411]
[1729522588701,0.074413,67217.0,67216.0,0.074411]
[1729522589502,0.3608,67223.0,67220.0,0.074407]
[1729522589503,0.074409,67221.0,67220.0,0.074407]
[1729522590895,0.3608,67223.0,67222.0,0.074406]
[1729522592200,0.3798,67223.0,67222.0,0.075406]
[1729522592401,0.454205,67223.0,67222.0,0.075406]
[1729522592711,0.3798,67223.0,67222.0,0.075406]
[1729522596996,0.0116,67223.0,67222.0,0.075406]
[1729522597195,0.0116,67223.0,67222.0,0.521686]
[1729522597401,0.00223156,67237.0,67236.0,0.07439]
[1729522598805,0.00223156,67237.0,67236.0,0.07539]
[1729522598806,0.01223156,67237.0,67236.0,0.07539]
[1729522599002,0.02623156,67237.0,67236.0,0.07539]
[1729522599298,0.02323156,67237.0,67236.0,0.07539]
[1729522600513,0.00923156,67237.0,67236.0,0.06739]
[1729522600702,0.01623156,67237.0,67236.0,0.06839]
[1729522601401,0.00223156,67237.0,67236.0,0.06639]
[1729522601594,0.01123156,67237.0,67236.0,0.06739]
[1729522602411,0.01023156,67237.0,67236.0,0.06739]
[1729522602613,0.01123156,67237.0,67236.0,0.06739]
[1729522603313,0.00323156,67237.0,67236.0,0.06639]
[1729522603510,0.01023156,67237.0,67236.0,0.06739]
[1729522604111,0.01423156,67237.0,67236.0,0.06839]
[1729522604615,0.00923156,67237.0,67236.0,0.06739]
[1729522604913,0.01423156,67237.0,67236.0,0.06739]
[1729522605300,0.01423156,67237.0,67236.0,0.06639]
[1729522605301,0.00223156,67237.0,67236.0,0.06639]
[1729522605497,0.00223156,67237.0,67236.0,0.06739]
[1729522605707,0.1107,67244.0,67239.0,0.074386]
[1729522606009,0.3608,67240.0,67239.0,0.074387]
[1729522607298,0.3608,67246.0,67239.0,0.074387]
[1729522607497,0.3608,67246.0,67245.0,0.07438]
[1729522607804,0.3608,67246.0,67233.0,0.3608]
[1729522608008,0.001,67240.0,67239.0,0.074387]
[1729522608203,0.3618,67240.0,67239.0,0.074387]
[1729522608604,0.3608,67240.0,67239.0,0.074387]
[1729522610817,0.3618,67240.0,67239.0,0.074387]
[1729522611614,0.3638,67240.0,67239.0,0.074387]
[1729522612512,0.3658,67240.0,67239.0,0.074387]
[1729522613616,0.005,67240.0,67239.0,0.074387]
[1729522614114,0.3608,67245.0,67244.0,0.074382]
[1729522615318,0.3658,67245.0,67244.0,0.074382]
[1729522615517,0.3718,67245.0,67244.0,0.075382]
[1729522615718,0.3718,67245.0,67244.0,0.067382]
[1729522618516,0.3658,67245.0,67244.0,0.066382]
[1729522618713,0.3628,67245.0,67244.0,0.066382]
[1729522619419,0.002,67245.0,67244.0,0.066382]
[1729522620211,0.005,67245.0,67240.0,0.1094]
[1729522620407,0.3608,67241.0,67225.0,0.07663287]
[1729522620610,0.3608,67229.0,67228.0,0.074399]
[1729522621319,0.3608,67229.0,67225.0,0.00223087]
[1729522621508,0.3608,67229.0,67226.0,0.074401]
[1729522621829,0.3608,67229.0,67228.0,0.004]
[1729522622126,0.3618,67229.0,67228.0,0.078399]
[1729522622514,0.001,67229.0,67228.0,0.078399]
[1729522623425,0.008,67229.0,67228.0,0.074399]
[1729522623919,0.012,67229.0,67228.0,0.074399]
[1729522624122,0.005,67229.0,67228.0,0.074399]
[1729522624323,0.009,67229.0,67228.0,0.074399]
[1729522624806,0.3608,67236.0,67235.0,0.074392]
[1729522625010,0.3608,67236.0,67235.0,0.08195302]
[1729522625205,0.3608,67236.0,67235.0,0.074392]
[1729522625710,0.3608,67244.0,67235.0,0.074392]
[1729522626521,0.3608,67244.0,67243.0,0.074383]
[1729522628125,0.3618,67244.0,67243.0,0.074383]
[1729522628313,0.005,67244.0,67243.0,0.074383]
[1729522628620,0.004,67244.0,67243.0,0.074383]
[1729522629019,0.004,67244.0,67232.0,0.114]
[1729522629218,0.004,67244.0,67233.0,0.074394]
[1729522629422,0.3608,67238.0,67237.0,0.074389]
[1729522630710,0.3608,67238.0,67230.0,0.3783044]
[1729522630711,0.3608,67238.0,67231.0,0.074395]
[1729522631028,0.3608,67232.0,67231.0,0.074395]
[1729522631229,0.3608,67232.0,67228.0,0.074399]
[1729522631523,0.3608,67232.0,67226.0,0.074402]
[1729522631728,0.3608,67232.0,67231.0,0.074396]
[1729522632317,0.3608,67232.0,67231.0,0.08199744]
[1729522632722,0.3618,67238.0,67237.0,0.074389]
[1729522633817,0.3608,67238.0,67237.0,0.074389]
[1729522634528,0.3668,67238.0,67237.0,0.074389]
[1729522635025,0.3658,67238.0,67237.0,0.074389]
[1729522635234,0.3668,67238.0,67237.0,0.074389]
[1729522638129,0.3658,67238.0,67237.0,0.074389]
[1729522638436,0.3668,67238.0,67237.0,0.074389]
[1729522638824,0.3618,67238.0,67237.0,0.074389]
[1729522639029,0.3668,67238.0,67237.0,0.074389]
[1729522640918,0.3608,67238.0,67237.0,0.074389]
[1729522641123,0.3668,67238.0,67237.0,0.074389]
[1729522643129,0.006,67238.0,67237.0,0.074389]
[1729522646639,0.006,67238.0,67237.0,0.066389]
[1729522648527,0.001,67238.0,67237.0,0.069389]
[1729522648731,0.3608,67246.0,67245.0,0.07438]
[1729522651138,0.3658,67246.0,67245.0,0.07438]
[1729522651440,0.3668,67246.0,67245.0,0.07438]
[1729522651932,0.3618,67246.0,67245.0,0.07438]
[1729522652136,0.3668,67246.0,67245.0,0.07438]
[1729522652635,0.006,67246.0,67245.0,0.18268]
[1729522653038,0.006,67246.0,67245.0,0.39828]
[1729522653243,0.3608,67257.0,67245.0,0.39828]
[1729522653244,0.3608,67257.0,67256.0,0.074368]
[1729522654445,0.3718,67257.0,67256.0,0.076368]
[1729522655948,0.3718,67257.0,67256.0,0.002]
[1729522657333,0.81784,67257.0,67256.0,0.002]
[1729522657533,0.3718,67257.0,67256.0,0.002]
[1729522657733,0.81784,67257.0,67256.0,0.002]
[1729522658246,0.3718,67257.0,67256.0,0.002]
[1729522658441,0.81784,67257.0,67256.0,0.002]
[1729522658748,0.81784,67257.0,67239.0,0.074386]
[1729522658949,0.81784,67257.0,67242.0,0.074384]
[1729522658950,0.3608,67243.0,67242.0,0.074384]
[1729522660845,0.3648,67243.0,67242.0,0.074384]
[1729522661547,0.3608,67243.0,67242.0,0.074384]
[1729522661747,0.3608,67243.0,67242.0,0.066384]
[1729522661748,0.3648,67243.0,67242.0,0.066384]
[1729522662141,0.3608,67250.0,67249.0,0.074376]
[1729522663947,0.3618,67250.0,67249.0,0.074376]
[1729522664648,0.3648,67250.0,67249.0,0.074376]
[1729522665251,0.3648,67250.0,67249.0,0.09214726]
[1729522665555,0.3618,67250.0,67249.0,0.09214726]
[1729522665741,0.3638,67250.0,67249.0,0.09214726]
[1729522667049,0.3618,67250.0,67249.0,0.09214726]
[1729522667239,0.3638,67250.0,67249.0,0.09214726]
[1729522667849,0.002,67250.0,67249.0,0.09314726]
[1729522668151,0.3608,67256.0,67253.0,0.074371]
[1729522668351,0.3608,67256.0,67251.0,0.074373]
[1729522668653,0.3608,67256.0,67250.0,0.074375]
[1729522668654,0.3608,67254.0,67250.0,0.074375]
[1729522668854,0.03643255,67253.0,67250.0,0.074375]
[1729522669038,0.03643255,67253.0,67252.0,0.074373]
[1729522669243,0.03643255,67253.0,67249.0,0.075375]
[1729522669557,0.03643255,67253.0,67243.0,0.074382]
[1729522669760,0.3608,67247.0,67246.0,0.074379]
[1729522670953,0.3638,67247.0,67246.0,0.074379]
[1729522671455,0.3628,67247.0,67246.0,0.074379]
[1729522671654,0.003,67247.0,67246.0,0.074379]
[1729522673244,0.001,67247.0,67246.0,0.074379]
[1729522673453,0.003,67247.0,67246.0,0.074379]
[1729522674351,0.3608,67248.0,67247.0,0.074378]
[1729522676744,0.3618,67248.0,67247.0,0.074378]
[1729522677248,0.3618,67248.0,67247.0,0.066378]
[1729522677751,0.3648,67248.0,67247.0,0.066378]
[1729522680958,0.004,67248.0,67247.0,0.066378]
[1729522681545,0.001,67248.0,67247.0,0.066378]
[1729522682544,0.3608,67255.0,67247.0,0.067378]
[1729522682747,0.3608,67255.0,67253.0,0.074371]
[1729522682953,0.3608,67255.0,67247.0,0.067378]
[1729522683162,0.3608,67255.0,67254.0,0.074371]
[1729522683953,0.3618,67255.0,67254.0,0.074371]
[1729522685448,0.3608,67255.0,67254.0,0.074371]
[1729522685747,0.3618,67255.0,67254.0,0.074371]
[1729522686153,0.3618,67255.0,67254.0,0.001]
[1729522686856,0.3648,67255.0,67254.0,0.001]
[1729522687362,0.3618,67255.0,67254.0,0.001]
[1729522687662,0.40123094,67255.0,67254.0,0.002]
[1729522688456,0.40123094,67255.0,67254.0,0.076371]
[1729522688654,0.3608,67269.0,67254.0,0.076371]
[1729522688857,0.3608,67269.0,67268.0,0.074355]
[1729522689051,0.39722526,67269.0,67268.0,0.074355]
[1729522689557,0.39722163,67269.0,67268.0,0.074355]
[1729522689757,0.3608,67269.0,67268.0,0.074355]
[1729522690570,0.3608,67269.0,67268.0,0.075355]
[1729522690571,0.3618,67269.0,67268.0,0.075355]
[1729522690768,0.3648,67269.0,67268.0,0.076355]
[1729522692457,0.3648,67269.0,67268.0,0.068355]
[1729522693160,0.004,67269.0,67268.0,0.068355]
[1729522693560,0.004,67269.0,67268.0,0.08537875]
[1729522694463,0.004,67269.0,67268.0,0.24673875]
[1729522695169,0.003,67269.0,67268.0,0.24673875]
[1729522695367,0.003,67269.0,67268.0,0.24573875]
[1729522695562,0.37829097,67282.0,67277.0,0.074344]
[1729522695766,0.37829097,67282.0,67279.0,0.074343]
[1729522696153,0.37829097,67282.0,67268.0,0.17938375]
[1729522696358,0.37829097,67282.0,67268.0,0.18038375]
[1729522696567,0.37829097,67282.0,67281.0,0.074341]
[1729522697369,0.3608,67282.0,67281.0,0.074341]
[1729522698964,0.36303,67283.0,67280.0,0.1095]
[1729522699158,0.36303,67283.0,67282.0,0.07434]
[1729522699564,0.3608,67283.0,67282.0,0.07434]
[1729522699957,0.3608,67289.0,67281.0,0.2184]
[1729522700161,0.3608,67289.0,67288.0,0.074333]
[1729522701976,0.3608,67289.0,67288.0,0.0914063]
[1729522702781,0.3608,67289.0,67288.0,0.0924063]
[1729522703162,0.3608,67289.0,67288.0,0.0934063]
[1729522703364,0.3608,67300.0,67299.0,0.074321]
[1729522705773,0.3608,67300.0,67288.0,0.1823933]
[1729522706076,0.3608,67300.0,67299.0,0.074321]
[1729522707291,0.3608,67300.0,67299.0,0.075321]
[1729522707661,0.3608,67300.0,67299.0,0.001]
[1729522707662,0.80656,67300.0,67299.0,0.001]
[1729522707867,0.3608,67300.0,67299.0,0.001]
[1729522708084,0.3608,67300.0,67296.0,0.066324]
[1729522708880,0.3608,67300.0,67299.0,0.074321]
[1729522711068,0.3608,67300.0,67299.0,0.075321]
[1729522711972,0.3608,67300.0,67299.0,0.074321]
[1729522716084,0.3608,67306.0,67298.0,0.01772367]
[1729522716380,0.1076,67309.0,67295.0,0.1076]
[1729522716381,0.4684,67309.0,67308.0,0.074311]
[1729522716573,0.3608,67309.0,67308.0,0.074311]
[1729522717481,0.3608,67309.0,67308.0,0.075311]
[1729522720085,0.3608,67309.0,67308.0,0.074311]
[1729522720277,0.3608,67315.0,67314.0,0.074304]
[1729522721581,0.1196,67320.0,67309.0,0.00733273]
[1729522722378,0.1196,67320.0,67319.0,0.074299]
[1729522722780,0.3608,67324.0,67310.0,0.00760494]
[1729522722781,0.3608,67324.0,67323.0,0.074294]
[1729522723684,0.3608,67324.0,67323.0,0.066294]
[1729522724573,0.3608,67324.0,67320.0,0.01759742]
[1729522724775,0.3608,67324.0,67319.0,0.074298]
[1729522725886,0.435093,67324.0,67319.0,0.074298]
[1729522726380,0.3608,67321.0,67319.0,0.074298]
[1729522727084,0.435097,67321.0,67316.0,0.074302]
[1729522727283,0.3608,67317.0,67295.0,0.074325]
[1729522727482,0.3608,67317.0,67300.0,0.07432]
[1729522727483,0.3608,67301.0,67300.0,0.07432]
[1729522727687,0.3608,67308.0,67295.0,0.074325]
[1729522727873,0.074313,67306.0,67302.0,0.074317]
[1729522728079,0.074313,67306.0,67303.0,0.074316]
[1729522728282,0.3608,67308.0,67294.0,0.38040964]
[1729522728478,0.3608,67308.0,67307.0,0.074312]
[1729522729586,0.074315,67304.0,67303.0,0.014]
[1729522729891,0.074324,67296.0,67295.0,0.014]
[1729522730092,0.074325,67295.0,67294.0,0.09055318]
[1729522730694,0.074325,67295.0,67294.0,0.088325]
[1729522730988,0.074327,67294.0,67292.0,0.09202201]
[1729522731184,0.3608,67296.0,67295.0,0.074325]
[1729522732790,0.3638,67296.0,67295.0,0.074325]
[1729522733289,0.003,67296.0,67295.0,0.074325]
[1729522734392,0.3638,67296.0,67295.0,0.074325]
[1729522734587,0.3608,67296.0,67295.0,0.074325]
[1729522734788,0.3638,67296.0,67295.0,0.074325]
[1729522735090,0.003,67296.0,67295.0,0.074325]
[1729522735492,0.3608,67302.0,67301.0,0.074319]
[1729522737792,0.3698,67302.0,67301.0,0.075319]
[1729522738287,0.3698,67302.0,67301.0,0.076319]
[1729522738597,0.81556,67302.0,67301.0,0.002]
[1729522738895,0.074331,67290.0,67281.0,0.00222905]
[1729522739100,1.41456,67302.0,67281.0,0.09427583]
[1729522739101,0.3608,67282.0,67281.0,0.09427583]
[1729522739398,0.3608,67282.0,67281.0,0.08927583]
[1729522740798,0.3608,67289.0,67281.0,0.02870578]
[1729522741093,0.3608,67289.0,67288.0,0.074333]
[1729522742397,0.3608,67289.0,67288.0,0.078333]
[1729522742589,0.3608,67299.0,67298.0,0.074322]
[1729522743991,0.3618,67299.0,67298.0,0.074322]
[1729522744186,0.3678,67299.0,67298.0,0.075322]
[1729522746887,0.3608,67314.0,67298.0,0.889208]
[1729522747101,0.3608,67314.0,67313.0,0.074305]
[1729522748500,0.3748,67314.0,67313.0,0.075305]
[1729522749511,0.3758,67314.0,67313.0,0.076305]
[1729522749704,0.015,67314.0,67313.0,0.076305]
[1729522749905,0.015,67314.0,67313.0,0.09384696]
[1729522751192,0.015,67314.0,67313.0,0.21054696]
[1729522752202,0.3608,67322.0,67321.0,0.074297]
[1729522753899,0.3608,67322.0,67313.0,0.1177]
[1729522754099,0.3648,67322.0,67313.0,0.1167]
[1729522754301,0.3658,67322.0,67313.0,0.1167]
[1729522754506,0.3658,67322.0,67318.0,0.066299]
[1729522754702,0.3658,67322.0,67313.0,0.1167]
[1729522754914,0.3658,67322.0,67321.0,0.074297]
[1729522755707,0.04039509,67322.0,67321.0,0.074297]
[1729522756411,0.03639509,67322.0,67321.0,0.074297]
[1729522757106,0.3608,67325.0,67321.0,0.074297]
[1729522757107,0.03639588,67324.0,67321.0,0.074297]
[1729522757613,0.3608,67325.0,67321.0,0.074297]
[1729522758317,0.3608,67325.0,67322.0,0.074295]
[1729522759615,0.03639525,67324.0,67313.0,0.09183851]
[1729522759833,0.3608,67325.0,67313.0,0.09183851]
[1729522760036,0.03639484,67324.0,67320.0,0.074297]
[1729522760235,0.03639484,67323.0,67320.0,0.074297]
[1729522760433,0.3608,67325.0,67320.0,0.074297]
[1729522760434,0.03639484,67322.0,67320.0,0.074297]